Cogmind - Beta 16.1 @@@ ROGUE MODE // 2026.02.13 @ 20:15:18 Player: Cazador Result: Self-destructed Performance ------------- Evolutions (2) 1000 Regions Visited (3) 600 Robots Destroyed (50) 250 Value Destroyed (1349) 1349 Prototype IDs (0) 0 Alien Tech Used (0) 0 Bonus (0) 0 TOTAL SCORE: 3199 Bonus ------- None Cogmind --------- Core Integrity 220/550 Matter 247/300 Energy 265/265 System Corruption 1% Temperature Cool (18) Movement Flying (917) Ox11 Location -8/Materials Parts ------- > --- POWER (2) -------- Improved Ion Engine > --- PROPULSION (3) --- Flight Unit Flight Unit > --- UTILITY (4) ------ Improved Heat Sink Huge Storage Unit Improved Utility Shielding (fused) > --- WEAPON (2) ------- Katana Axe > --- INVENTORY (25) --- Light Ion Engine Light Armor Plating Light Armor Plating Shock Rifle Beam Rifle Heavy Assault Rifle Peak State ------------ > --- POWER ------------ Improved Ion Engine Light Nuclear Core > --- PROPULSION ------- Advanced Treads Advanced Treads Advanced Treads > --- UTILITY ---------- Improved Heat Sink Huge Storage Unit Visual Processing Unit Hardened Light Armor Plating > --- WEAPON ----------- High-powered Shotgun High-powered Shotgun > --- INVENTORY -------- Light Ion Engine Advanced Treads Cesium-ion Thruster Improved Heat Sink Improved Utility Shielding Medium Armor Plating Beam Rifle Particle Cannon Shotgun [Rating: 30] Favorites ----------- Power Improved Ion Engine Engine Improved Ion Engine Power Core Light Nuclear Core Propulsion Light Treads Treads Light Treads Wheel Compact Wheel Flight Unit Flight Unit Utility Small Storage Unit Device Improved Heat Sink Storage Small Storage Unit Processor Visual Processing Unit Protection Hardened Light Armor Plating Weapon Medium Laser Energy Gun Medium Laser Energy Cannon Particle Cannon Ballistic Gun Heavy Assault Rifle Launcher Grenade Launcher Slashing Weapon Katana Build | -11 -10 -9 -8 ------- Run | Yrd Mat Mat Mat Slots Evolved 4 | . . 2 2 Power 1 | . . 1 . Propulsion 1 | . . 1 . Utility 2 | . . . 2 Weapon . | . . . . Parts Attached 52 | 6 3 22 21 Power 11 | 1 1 5 4 Engine 10 | 1 1 5 3 Core 1 | . . . 1 Reactor . | . . . . Propulsion 15 | 2 . 9 4 Treads 11 | 2 . 8 1 Leg . | . . . . Wheel 1 | . . 1 . Hover . | . . . . Flight 3 | . . . 3 Utility 9 | 1 1 1 6 Device 2 | . . . 2 Storage 3 | 1 1 . 1 Processor 1 | . . . 1 Hackware . | . . . . Protection 3 | . . 1 2 Artifact . | . . . . Weapon 17 | 2 1 7 7 Energy Gun 7 | 2 1 3 1 Energy Cannon 2 | . . 2 . Ballistic Gun 5 | . . 1 4 Ballistic Cannon . | . . . . Launcher 1 | . . 1 . Special Weapon . | . . . . Impact Weapon . | . . . . Slashing Weapon 2 | . . . 2 Piercing Weapon . | . . . . Special Melee Weapon . | . . . . Unidentified Prototypes . | . . . . Parts Lost 11 | . . 1 10 Power 4 | . . 1 3 Propulsion 4 | . . . 4 Utility 3 | . . . 3 Weapon . | . . . . Highest Loss Streak 4 | . . 1 4 To Critical Strikes . | . . . . Average Backups 6 | 2 5 7 5 Power . | . 1 . . Propulsion 1 | 1 2 1 . Utility 1 | . . 2 2 Weapon 2 | . 2 3 2 Tool/Special . | . . . . Unused Backups 9 | . . 5 4 Power 1 | . . . 1 Propulsion 3 | . . 3 . Utility 3 | . . 1 2 Weapon 2 | . . 1 1 Tool/Special . | . . . . Average Slot Usage (%) 91 | . 91 95 88 Engine 17 | . 14 21 14 Core 1 | . . . 2 Treads 19 | . 28 29 10 Flight 5 | . . . 11 Device 3 | . . . 7 Storage 14 | . 20 20 9 Processor 1 | . . . 2 Protection 6 | . . 1 11 Energy Gun 11 | . 27 18 2 Energy Cannon 2 | . . 2 2 Ballistic Gun 5 | . . . 9 Slashing Weapon 1 | . . . 3 Peak Build Rating 30 | 6 7 21 30 Average Rating 16 | 4 6 13 21 On Entrance 8 | . 6 7 20 Avg Prop Armor Cover (%) . | . . . . Naked Turns . | . . . . Heaviest Build 112 | 11 15 32 112 Greatest Support 66 | 40 40 66 66 Greatest Overweight (x) 31 | . . 1 31 Average Overweight (x) . | . . . 3 Largest Inventory Capacity 25 | 8 8 8 25 Average Capacity 15 | 6 8 8 22 Most Carried 11 | 5 8 8 11 Average Carried 6 | 2 6 7 5 Final Capacity 25 | 8 8 8 25 Final Carried 8 | 4 8 6 6 Class Distribution -------------------- 63% | Mutant 36% | Scavenger-Mutant Dominant Class ---------------- Mutant | -10/Materials Mutant | -9/Materials Scavenger-Mutant | -8/Materials Resources | -11 -10 -9 -8 ----------- Run | Yrd Mat Mat Mat Matter Collected 1034 | 209 145 181 499 Remotely . | . . . . Salvage Created 1575 | . 42 725 808 Parts 103 | . 4 38 61 Haulers Intercepted 1 | . . 1 . Recyclers Shooed 1 | . . 1 . Parts Field Recycled . | . . . . Retrieved Matter . | . . . . Parts Self-Destructed . | . . . . Prevented . | . . . . Parts Restored . | . . . . Kills | -11 -10 -9 -8 ------- Run | Yrd Mat Mat Mat Combat Hostiles Destroyed 39 | . 1 20 18 Melee 3 | . . . 3 Guns 20 | . . 8 12 Cannons 6 | . . 5 1 AOE 8 | . . 6 2 Classes Destroyed 10 | . 1 7 2 Worker 4 | . . 1 3 Builder 1 | . . . 1 Hauler 1 | . . 1 . Recycler 1 | . . 1 . Watcher 4 | . . 2 2 Swarmer 13 | . . 9 4 Grunt 13 | . 1 6 6 Brawler 2 | . . 1 1 Sentry 10 | . . 4 6 Hunter 1 | . . . 1 Best Kill Streak 6 | . 1 6 5 Combat Bots Only 5 | . 1 5 3 Max Kills in Single Turn 4 | . 1 4 2 Gunslinging . | . . . . Exploded 3 | . . 3 2 Melee 1 | . . . 1 Uniques/NPCs Destroyed . | . . . . Combat | -11 -10 -9 -8 -------- Run | Yrd Mat Mat Mat Hostile Shots Fired 275 | . 7 116 152 Missed 72 | . 3 29 40 Hits 203 | . 4 87 112 Melee 3 | . . 2 1 Projectile 200 | . 4 85 111 Critical Strikes 7 | . . 4 3 Actively Blocked 1 | . . . 1 Damage Taken 2826 | . 43 1157 1626 Core 468 | . 11 127 330 Absorbed by Shields . | . . . . Redirected to Shielding 38 | . . . 38 Core Remaining (%) 87 | 100 95 68 . Volleys Fired 111 | . 5 50 56 Largest 2 | . 2 2 2 Hottest 128 | . 90 128 93 Shots Fired 217 | . 10 97 110 Gun 188 | . 10 80 98 Cannon 25 | . . 13 12 Launcher 4 | . . 4 . Special . | . . . . Kinetic 90 | . . . 90 Thermal 87 | . 10 65 12 Explosive 4 | . . 4 . Electromagnetic 36 | . . 28 8 Robot Hit Streak 18 | . 2 18 7 Robot Miss Streak 7 | . 2 3 7 Penetration Max . | . . . . Secondary Targets 1 | . . 1 . Max Gunslinging Chain 1 | . . 1 . Shots Hit Robots 147 | . 5 66 76 Core Hits 83 | . 1 38 44 Critical Kills . | . . . . Critical Parts Destroyed . | . . . . Critical Strikes 5 | . 3 2 . Burn 4 | . 3 1 . Corrupt 1 | . . 1 . Melee Attacks 4 | . . . 4 Impact . | . . . . Slashing 4 | . . . 4 Piercing . | . . . . Sneak Attacks . | . . . . Combat Hostiles . | . . . . Follow-up Attacks . | . . . . Damage Inflicted 3003 | . 61 1439 1503 Guns 1906 | . 61 767 1078 Cannons 273 | . . 128 145 Explosions 706 | . . 540 166 Melee 114 | . . . 114 Ramming 4 | . . 4 . Kinetic 990 | . . . 990 Thermal 1125 | . 61 753 311 Explosive 451 | . . 451 . Electromagnetic 319 | . . 231 88 Impact . | . . . . Slashing 114 | . . . 114 Piercing . | . . . . Highest Corruption 1 | . . . 1 Average Corruption 1 | . . . 1 Corruption Purged . | . . . . Corruption Blocked . | . . . . Effects 1 | . . . 1 Parts Fused 1 | . . . 1 Overload Shots . | . . . . Overflow Damage . | . . . . Projectiles . | . . . . Explosions . | . . . . Melee . | . . . . Knockbacks . | . . . . Impact . | . . . . Kinetic . | . . . . Secondary . | . . . . Self-Inflicted Damage 181 | . . 130 51 Shots 4 | . . 3 1 Rammed . | . . . . Targets Rammed 1 | . . 1 . Kicked . | . . . . Crushed 1 | . . 1 . Highest Temperature 482 | . 132 482 84 Average Temperature 147 | . 60 171 26 Received Heat Transfer 837 | . 24 354 459 Effects 10 | . . 10 . Shutdowns 6 | . . 6 . Energy Bleed 2 | . . 2 . Interference 2 | . . 2 . Siege Activations . | . . . . Martial Activations . | . . . . Shielding Activations . | . . . . Robots Disrupted . | . . . . Combat Hostiles . | . . . . Robots Corrupted . | . . . . Combat Hostiles . | . . . . Parts Fried 1 | . . 1 . Impact Corruptions . | . . . . Robots Melted 2 | . 1 1 . Combat Hostiles 2 | . 1 1 . Parts Melted 8 | . 1 7 . Heat Transferred 2609 | . 383 1817 409 Parts Sabotaged . | . . . . Parts Stolen . | . . . . Parts Stripped . | . . . . Power Chain Reactions 2 | . . 1 1 Alert | -11 -10 -9 -8 ------- Run | Yrd Mat Mat Mat Maximum Alert Level 1 | . . 1 . Low Security (%) 95 | 100 100 87 100 Level 1 4 | . . 12 . Level 2 . | . . . . Level 3 . | . . . . Level 4 . | . . . . Level 5 . | . . . . High Security . | . . . . Max Security . | . . . . Peak Influence 263 | . 30 263 150 Initial 108 | . . . 108 Average 72 | . 2 89 85 Influence Increases 1147 | . 30 599 518 Destroy 0b10 Robot/C 780 | . 20 400 360 Destroy 0b10 Robot/NC 55 | . . 25 30 Destroy Leader 210 | . 10 96 104 Disable Machine 15 | . . 15 . Destroy Structure 57 | . . 48 9 Lose Combat Pursuer 30 | . . 15 15 Influence Decreases 1099 | . 30 342 727 Entered New Map 149 | . . . 149 Time Decay 840 | . 30 332 478 Lost Part 110 | . . 10 100 Squads Dispatched 7 | . 3 1 3 Investigation 3 | . 1 1 1 Extermination . | . . . . Reinforcement 4 | . 2 . 2 Assault . | . . . . Garrison . | . . . . Intercept . | . . . . Searches Triggered . | . . . . Construction Impeded . | . . . . Haulers Reinforced . | . . . . Active Scanning Responses . | . . . . Cargo Convoy Interrupts . | . . . . Stealth | -11 -10 -9 -8 --------- Run | Yrd Mat Mat Mat Distress Signals 9 | . 1 2 6 Communications Jammed . | . . . . Distress Signals . | . . . . Times Spotted 62 | . 5 26 31 Peak Tracking Total 5 | . 2 5 5 Tactical Retreats 2 | . . 1 1 Traps | -11 -10 -9 -8 ------- Run | Yrd Mat Mat Mat Traps Triggered 2 | . . 1 1 Indirectly . | . . . . Trap Hack Attempts . | . . . . Triggered . | . . . . Disarmed . | . . . . Reprogrammed . | . . . . Reused . | . . . . Traps Extracted . | . . . . Installed . | . . . . Triggered . | . . . . Machines | -11 -10 -9 -8 ---------- Run | Yrd Mat Mat Mat Machines Disabled 1 | . . 1 . Max in Single Turn 1 | . . 1 . Machines Repaired . | . . . . Machines Dismantled . | . . . . Machines Sabotaged . | . . . . Overloaded Fab Kills . | . . . . Hacking | -11 -10 -9 -8 --------- Run | Yrd Mat Mat Mat Machines Accessed 1 | . . 1 . Terminals 1 | . . 1 . Fabricators . | . . . . Repair Stations . | . . . . Recycling Units . | . . . . Scanalyzers . | . . . . Garrison Access . | . . . . Total Hacks 1 | . . 1 . Successful 1 | . . 1 . Failed . | . . . . Catastrophic . | . . . . Database Lockouts . | . . . . Manual . | . . . . Terminals 1 | . . 1 . Fabricators . | . . . . Repair Stations . | . . . . Recycling Units . | . . . . Scanalyzers . | . . . . Garrison Access . | . . . . Terminal Hacks 1 | . . 1 . Record 1 | . . 1 . Fabricator Hacks . | . . . . Repair Station Hacks . | . . . . Recycling Unit Hacks . | . . . . Scanalyzer . | . . . . Garrison Access Hacks . | . . . . Unauthorized Hacks . | . . . . Terminals . | . . . . Fabricators . | . . . . Repair Stations . | . . . . Recycling Units . | . . . . Scanalyzers . | . . . . Garrison Access . | . . . . Data Cores Recovered 1 | . 1 . . Used . | . . . . Hacking Detections 1 | . . 1 . Full Trace Events . | . . . . Feedback Events . | . . . . Feedback Blocked . | . . . . Robot Schematics Acquired . | . . . . Robots Built . | . . . . Authchips . | . . . . Time . | . . . . Total Robot Build Rating . | . . . . Part Schematics Acquired . | . . . . Parts Built . | . . . . Authchips . | . . . . Time . | . . . . Total Part Build Rating . | . . . . Part Studies Acquired . | . . . . Parts Repaired . | . . . . Time . | . . . . Parts Recycled . | . . . . Recycled Matter . | . . . . Retrieved Matter . | . . . . Retrieved Components . | . . . . Parts Scanalyzed . | . . . . Part Schematics Acquired . | . . . . Parts Damaged . | . . . . Bothacking | -11 -10 -9 -8 ------------ Run | Yrd Mat Mat Mat Used RIF Installer . | . . . . Robots Hacked . | . . . . Non-combat . | . . . . Combat . | . . . . Robot Hacks Applied . | . . . . Relay Couplers Released . | . . . . Fabnet Peak Effective % . | . . . . Robots Rewired . | . . . . Allies Hacked . | . . . . Hacks Repelled . | . . . . Allies | -11 -10 -9 -8 -------- Run | Yrd Mat Mat Mat Total Allies . | . . . . Largest Group . | . . . . Highest-Rated Group . | . . . . Highest-Rated Ally . | . . . . Total Orders . | . . . . Ally Attacks . | . . . . Total Damage . | . . . . Kills . | . . . . Allies Corrupted . | . . . . Allies Melted . | . . . . Intel | -11 -10 -9 -8 ------- Run | Yrd Mat Mat Mat Active Infowar (turns) 352 | . . . 352 Optics 352 | . . . 352 Robot Analysis Total . | . . . . Derelict Logs Recovered . | . . . . Drone Launches . | . . . . Drone Recoveries . | . . . . Exploration | -11 -10 -9 -8 ------------- Run | Yrd Mat Mat Mat Turns Passed 2495 | 74 362 835 1224 Spaces Moved 895 | 47 204 375 269 Core 17 | 15 . . 2 Treads 800 | 32 204 375 189 Legs . | . . . . Wheels . | . . . . Hover . | . . . . Flight 78 | . . . 78 Fastest Speed 50 | 50 160 145 145 Average Speed 217 | 124 160 155 362 Slowest Speed 1600 | 160 160 225 1600 Overloaded Moves . | . . . . Propulsion Burnouts . | . . . . Robots Hopped . | . . . . Potential Cave-ins . | . . . . Cave-ins Triggered . | . . . . Exploration Rate (%) 26 | 3 39 38 24 Regions Visited 3 Branch Regions . Pre-discovered Areas . | . . . . Known Exits Taken . | . . . . Unknown Exits Taken 3 | 1 1 1 . Scrap Searched . | . . . . Spaces Dug . | . . . . Terrain Destroyed 60 | . . 54 6 Melee . | . . . . Projectile 2 | . . 2 . AOE 58 | . . 52 6 Terrain Rammed . | . . . . Walls Destroyed . | . . . . Machines Disabled . | . . . . Actions | -11 -10 -9 -8 --------- Run | Yrd Mat Mat Mat Total 1255 | 62 232 552 409 Wait 67 | . 7 46 14 Move 892 | 46 203 374 269 Hop . | . . . . Pick Up 66 | 10 9 26 21 Fast Attach . | . . . . Attach 49 | 6 2 22 19 Detach 18 | . 1 7 10 Swap 7 | . 1 1 5 Drop 40 | . 4 25 11 Fire 111 | . 5 50 56 Melee 4 | . . . 4 Ram . | . . . . Kick . | . . . . Crush 1 | . . 1 . Escape Stasis . | . . . . Rewire . | . . . . Trap . | . . . . Miscellaneous . | . . . . Route ------- -11/Scrapyard -10/Materials (discovered 3 exits: *Mat / [*Min x2]) -9/Materials -8/Materials History --------- Turn | Location | Event 5 | -11/Scrapyard | Discovered new exit (range 15) 75 | -11/Scrapyard | Entered Materials 76 | -10/Materials | Met a group of wandering Federalists 115 | -10/Materials | Discovered new exit (range 13) 195 | -10/Materials | Discovered new exit (range 8) 312 | -10/Materials | Build established: Mutant 376 | -10/Materials | Discovered new exit (range 3) 437 | -10/Materials | Entered another Materials area 437 | -9/Materials | Evolved 2 slots: Power x1, Propulsion x1 1248 | -9/Materials | Discovered new exit (range 16) 1272 | -9/Materials | Entered another Materials area 1272 | -8/Materials | Evolved 2 slots: Utility x2 1754 | -8/Materials | Lost 3 parts (1p2n) 1816 | -8/Materials | Lost 4 parts (1p1n2u) 2106 | -8/Materials | Build established: Scavenger-Mutant 2493 | -8/Materials | Core integrity fell below 50% 2496 | -8/Materials | Self-destructed Last Messages --------------- 02367_ K-01 Serf collects debris. 02368_ R-06 Scavenger collects Lgt. Nuclear Core. 02370_ K-01 Serf collects debris. 02371_ R-06 Scavenger collects Lgt. Treads. 02373_ K-01 Serf collects debris. 02378_ R-06 Scavenger collects Aluminum Leg. 02382_ K-01 Serf collects debris. 02382_ R-06 Scavenger collects Hammer. 02387_ Acquired 53 matter. 02388_ R-06 Scavenger collects Aluminum Leg. 02391_ R-06 Scavenger collects Rnf. Ion Engine. 02404_ System corrupted: Imp. Utility Shielding fused. 02476_ ALERT: Hostiles spotted, dispatching reinforcements to Terminal M002. [Achievement: That Tickles] 02481_ Critical hit (Burn: +37). 02495_ M-13 Machinist repairs W-25 Informer. 02496_ Lgt. Ion Engine destroyed. Map ----- +----------------------------------------------------+ | ?????????????????????????????????????????????????? | | ?????????????????????????????????????????????????? | | ?????????????????????????????????????????????????? | | ?????????????????????????????????????????????????? | | ?????????????????????????????????????????????????? | | ?????????????????????????????????????????????????? | | ?????????????????????????????????????????????????? | | ?????????????????????????????????????????????????? | | ?????????????????????????????????????????????????? | | ?????????????????????????????????????????????????? | | ???????????????????????? ??????????????????????? | | ???????????????????????? ??????????????????????? | | ???????????????????????? ??????????????????????? | | ???????????????????????#w a#?????????????????????? | | ???????????????????????# m #?????????????????????? | | ???????????????????????# #?????????????????????? | | ???????????????????????# #?????????????????????? | | ???????????????????????#gwg#?????????????????????? | | ???????????????????????# a #?????????????????????? | | ???????????????????????# g #?????????????????????? | | ???????????????????????# #?????????????????????? | | ???????????????????????# #?????????????????????? | | ???????????????######### #?????????????????????? | | ?????????????### !## #?????????????????????? | | ????????###### # """ ## #?????????????????????? | | ????????# # """ ## @ #?????????????????????? | | ????????# T # """ ## #?????????????????????? | | ????????# + ##r #?????????????????????? | | ????????# # * ## #??????#??????????????? | | ????????# % #+##+#### ### #?????????????? | | ######### # #?????????????? | | % + """ + % ??????????? | | " "" # """ # = ####??????????? | | " """ # """ ####+########## ] #?????????????? | | """ "" # """ # % ##??????## ###?????????????? | | # + % ##?????????#???????????????? | | # #] ##?????????????????????????? | | # # """=##?????????????????????????? | | ######## """ #??????????????????????????? | | #########??????# """ #??????????????????????????? | | #???########??????????????????????????? | | #######??????????????????????????????????????????? | | ?????????????????????????????????????????????????? | | ?????????????????????????????????????????????????? | | ?????????????????????????????????????????????????? | | ?????????????????????????????????????????????????? | | ?????????????????????????????????????????????????? | | ?????????????????????????????????????????????????? | | ?????????????????????????????????????????????????? | | ?????????????????????????????????????????????????? | +----------------------------------------------------+ Best States ------------- Heat Dissipation 45 Energy Generation 21 Energy Capacity 430 Matter Stores 400 Matter Capacity 400 Sight Range 18 Terrain Scan Density 10 Armor Coverage 375 Utility Shielding 66 Evasion (%) 50 Recoil Reduction 3 Item Schematics ----------------- None Robot Schematics ------------------ None Fabricated ------------ Nothing Repaired ---------- Nothing Studied --------- None Alien Tech Used ----------------- None Achievements -------------- DATA ERROR: Steam Global Achievement% Ghost 'Em Organ Harvest Resistances Are Futile Spot Them First That Tickles Challenges ------------ None Game ------ Seed GrenadeLatentAccelerator Manual? 0 Play Time 00:24:12 Cumulative 3.4 hours Start 2026.02.13 @ 19:51:44 End 2026.02.13 @ 20:15:18 Sessions 1 Manual Loads 0 Difficulty Rogue Special Mode None Game No. 14 Rogue 14 Adventurer 0 Explorer 0 Win Type - Total 0 Types 0/0/0/0/0/0/0/0/0/0 Lore% 0 Gallery% 8 Achievement% 5 Wizard Run 0 Options --------- Layout 1 ASCII 0 Keyboard 1 Movement Numpad Keybinds 0 Fullscreen 2 Font 32/SmallcapsGlow Map View 50x35 Zoom Use 0% Tactical HUD 1 Map Filters NONE Filters NONE Steam 1 RUN: 34ac7c4e-694d-48de-9cd7-2e176bb7f363